Workbook

Sheet Titulní list
B16: ROZBOR HOSPODAŘENÍ FN OLOMOUC
F18: =dat_obdobi -> 1-2/2010
A44: Období od: | B44: 2010-01-01
A45: do: | B45: 2010-02-28
A46: rok: | B46: =YEAR(dat_do) -> 2010
A47: Typ období: | B47: =CONCATENATE(MONTH(dat_od),"-",MONTH(dat_do),"/",YEAR(dat_do)) -> 1-2/2010
A48: Měsíc: | B48: =dat_do -> 2010-02-28
B49: =CONCATENATE("Skut. ", dat_obdobi) -> Skut. 1-2/2010
B50: =CONCATENATE("PLÁN ", dat_rok) -> PLÁN 2010
A51: Předch.obd.od: | B51: =CONCATENATE("1.1.",YEAR(dat_od)-1) -> 1.1.2009
A52: Předch.obd.do: | B52: =CONCATENATE((DAY(dat_do)),".",MONTH(dat_do),".",YEAR(dat_do)-1) -> 28.2.2009
A53: Předch.rok: | B53: =YEAR(dat_dorokpredch) -> 2009
A54: Předch.r. měs. | B54: =dat_do-366 -> 2009-02-27
A55: Predch.typ obd. | B55: =CONCATENATE(MONTH(dat_odrokpredch),"-",MONTH(dat_dorokpredch),"/",YEAR(dat_dorokpredch)) -> 1-2/2009

Sheet Rozbor hospodaření FN Olomouc-1
A1: ROZBOR HOSPODAŘENÍ FN OLOMOUC
A3: =dat_obdobi -> 1-2/2010
D5: Rozpočet | E5: Skutečnost | G5: Rozdíl | H5: Překročení
D6: =YEAR(dat_do) -> 2010 | E6: =dat_obdobi -> 1-2/2010
A7: Náklady bez VPN | D7: 4195228 | E7: 740216.2662 | F7: tis.Kč | G7: =N_bez_VPN-((N_bez_VPN_Rozp/12)*MONTH(dat_do)) -> 41011.59957 | H7: =IF(N_bez_VPN_Rozp <> 0,G7/((N_bez_VPN_Rozp/12)*MONTH(dat_do)),"-") -> 0.05865464224
A8: Náklady celkem vč. VPN | D8: 4468965 | E8: 788333.6461 | F8: tis.Kč | G8: =N_vc_VPN-((N_vc_VPN_Rozp/12)*MONTH(dat_do)) -> 43506.14611
A10: Výnosy bez VPV | D10: 4216203 | E10: 704908.6958 | F10: tis.Kč | G10: =V_bez_VPV-((V_bez_VPV_Rozp/12)*MONTH(dat_do)) -> 2208.19585 | H10: =IF(V_bez_VPV_Rozp <> 0,G10/((V_bez_VPV_Rozp/12)*MONTH(dat_do)),"-") -> 0.003142442406
A11: Výnosy celkem vč. VPV | D11: 4489940 | E11: 753026.0757 | F11: tis.Kč | G11: =V_vc_VPV-((V_vc_VPV_Rozp/12)*MONTH(dat_do)) -> 4702.742387
A13: Hospodářský výsledek = | C13: ztráta | E13: =ABS(E10-E7) -> 35307.57039 | F13: tis.Kč
A15: Rozbor nákladů:
A17: Překročení nákladů o:
A19: SZM | E19: 31575 | F19: tis. Kč
A20: Léky | E20: 10935 | F20: tis. Kč
A21: Spotřeba energie | E21: 7609 | F21: tis. Kč
A22: Všeobecný materiál | E22: 414 | F22: tis. Kč
A23: Biologické implantáty | E23: 598 | F23: tis. Kč
A24: DHM a textil | E24: 1075 | F24: tis. Kč
A25: Osobní náklady | E25: 2606 | F25: tis. Kč
A30: Zásoby: | B30: Limit | C30: =CONCATENATE("Počáteční stav ",DAY(dat_od),".",MONTH(dat_od),".",YEAR(dat_do)) -> Počáteční stav 1.1.2010 | D30: =CONCATENATE("Stav k ",DAY(dat_do),".",MONTH(dat_do),".",YEAR(dat_do)) -> Stav k 28.2.2010 | E30: Snížení / Zvýšení zásob o
A31: Léky | B31: 23300 | C31: 34109 | D31: 35127 | E31: =IF(C31>D31,"snížení","zvýšení") -> zvýšení | F31: =D31-C31 -> 1018
A32: Krev | B32: 13000 | C32: 16522 | D32: 15676 | E32: =IF(C32>D32,"snížení","zvýšení") -> snížení | F32: =D32-C32 -> -846
A33: SZM | B33: 14700 | C33: 4824 | D33: 5758 | E33: zvýšení | F33: 934
A34: Dentální slitiny | B34: nestanoven | C34: 242 | D34: 283 | E34: =IF(C34>D34,"snížení","zvýšení") -> zvýšení | F34: =D34-C34 -> 41
A35: Potraviny | B35: 1600 | C35: 1368 | D35: 1502 | E35: zvýšení | F35: 134
A36: Prádlo | B36: 2600 | C36: 1907 | D36: 2039 | E36: zvýšení | F36: 132
A37: Všeobecný materiál | B37: 1000 | C37: 1835 | D37: 1482 | E37: snížení | F37: -353
A38: Údržbový materiál | B38: nestanoven | C38: 936 | D38: 826 | E38: snížení | F38: -110
A39: DDHM | B39: nestanoven | C39: 582 | D39: 232 | E39: snížení | F39: -350
A40: Materiál na cestě | B40: nestanoven | C40: 787 | D40: 1024 | E40: zvýšení | F40: 237
A41: Zboží na skladě | B41: nestanoven | C41: 21 | D41: 39 | E41: zvýšení | F41: 18
A42: Zboží na cestě | B42: nestanoven | C42: 0 | D42: 42 | E42: zvýšení | F42: 42
A43: CELKEM | B43: nestanoven | C43: 63132 | D43: 64030 | E43: zvýšení | F43: 898
A46: Rozbor výnosů
D47: Rozpočet | E47: Skutečnost | G47: Rozdíl | H47: Překročení
D48: =YEAR(dat_do) -> 2010 | E48: =dat_obdobi -> 1-2/2010
A49: Výnosy celkem | D49: 4216203 | E49: 704908.6958 | F49: tis.Kč | G49: =E49-((D49/12)*MONTH(dat_do)) -> 2208.19585 | H49: =G49/((D49/12)*MONTH(dat_do)) -> 0.003142442406
A50: z toho:
A51: Výkony pro zdravotní pojišťovny | D51: 3391679 | E51: 562300.6661 | F51: tis.Kč | G51: =E51-((D51/12)*MONTH(dat_do)) -> -2979.167193 | H51: =IF(D51 <> 0,G51/((D51/12)*MONTH(dat_do)),"-") -> -0.005270252037
A52: 671 vybrané činnosti MZ | D52: 5200 | E52: 0 | F52: tis.Kč | G52: -866.6666667 | H52: -1
A53: 671 VaV | D53: 15000 | E53: 0 | F53: tis.Kč | G53: -2500 | H53: -1
A54: 671 dotace na DDM ISPROFIN | D54: 0 | E54: 0 | F54: tis.Kč | G54: 0 | H54: -
A55: 691 dotace na provoz z ÚSC | D55: 0 | E55: 0 | F55: tis.Kč | G55: 0 | H55: -
A56: 899 vnitropodnikové výnosy | D56: 273737 | E56: 48117 | F56: tis.Kč | G56: 2494.166667 | H56: 0.05466926283
A57: 604 tržby LS | D57: 381635 | E57: 50016 | F57: tis.Kč | G57: -13589.83333 | H57: -0.2136570283
A58: ostatní výnosy | D58: =D49 -SUM(D51:D57) -> 148952 | E58: =E49 -SUM(E51:E57) -> 44475.02971 | F58: tis.Kč | G58: 19649.69638 | H58: 0.791517927
A60: Komentář: vlivy do nákladů - vyšší spotřeba léků v centrech, vyšší spotřeba krev.deriv., překročení nákladů na defibrilátory, pořízení
A61: nábytku - vybavení ambulance traumatologie, OUP, marketingu, poradenské služby-inv.strategie z r.09,
A62: IOP-porad.služby
A63: vlivy do výnosů - dorovnání péče min.let VZP 4,5 mil., ZPMV a RBP 3 mil.

Sheet Ziskové kliniky FN Olomouc-3 (hidden)
A1: Ziskové kliniky FN Olomouc proti rozpočtu
A2: =dat_obdobi -> 1-2/2010
C30: Klinika | D30: Klinika č. | E30: Zisk
C31: Novorozenecké oddělení | D31: 09 | E31: 693
C32: Klinika TVL a kard.reh | D32: 27 | E32: 606
C33: Ústav lékařské genetiky a fet. | D33: 28 | E33: 1081
C34: Ústav patologie | D34: 37 | E34: 1039

Sheet Ziskové kliniky FN Olomouc-0 (hidden)
A1: Ziskové kliniky FN Olomouc
A2: =dat_obdobi -> 1-2/2010
C30: Klinika | D30: Klinika č. | E30: Zisk
C31: III. Interní klinika | D31: 03 | E31: 1023
C32: Klinika anesteziologie a resus | D32: 07 | E32: 35
C33: Novorozenecké oddělení | D33: 09 | E33: 2462
C34: Onkologická klinika | D34: 21 | E34: 1095
C35: Klinika nukleární medicíny | D35: 22 | E35: 9696
C36: Klinika rehabilit. a tělových. | D36: 26 | E36: 1330
C37: Klinika TVL a kard.reh | D37: 27 | E37: 327
C38: Ústav lékařské genetiky a fet. | D38: 28 | E38: 2890
C39: Odděl.klin.biochemie a imunoge | D39: 33 | E39: 5696
C40: Radiologická klinika | D40: 34 | E40: 1932
C41: Transfůzní oddělení | D41: 35 | E41: 4541
C42: Ústav patologie | D42: 37 | E42: 5628
C43: Ústav mikrobiologie | D43: 40 | E43: 2259
C44: Ústav imunologie | D44: 41 | E44: 2702
C45: Oddělení int.péče chir.oborů | D45: 59 | E45: 150

Sheet Ztrátové kliniky FN Olomouc-4 (hidden)
A1: Ztrátové kliniky FN Olomouc proti rozpočtu
A2: =dat_obdobi -> 1-2/2010
C30: Klinika | D30: Klinika č. | E30: Ztráta
C31: I. Interní klinika | D31: 01 | E31: 3346
C32: II. Interní klinika | D32: 02 | E32: 207
C33: III. Interní klinika | D33: 03 | E33: 1283
C34: I. Chirurgická klinika | D34: 04 | E34: 1165
C35: II. Chirurgická klinika | D35: 05 | E35: 961
C36: Neurochirurgická klinika | D36: 06 | E36: 1682
C37: Klinika anesteziologie a resus | D37: 07 | E37: 1448
C38: Porodnicko-gynekologická klini | D38: 08 | E38: 3395
C39: Dětská klinika | D39: 10 | E39: 1273
C40: Ortopedická klinika | D40: 11 | E40: 1402
C41: Urologická klinika | D41: 12 | E41: 1772
C42: Otolaryngologická klinika | D42: 13 | E42: 789
C43: Oční klinika | D43: 14 | E43: 5431
C44: Oddělení alergologie | D44: 15 | E44: 297
C45: Klinika plicních nemocí a tube | D45: 16 | E45: 2228
C46: Neurologická klinika | D46: 17 | E46: 769
C47: Klinika psychiatrie | D47: 18 | E47: 2845
C48: Klinika pracovního lékařství | D48: 19 | E48: 436
C49: Klinika chorob kožních a pohl. | D49: 20 | E49: 1279
C50: Onkologická klinika | D50: 21 | E50: 573
C51: Klinika nukleární medicíny | D51: 22 | E51: 1082
C52: Klinika zubního lékařství | D52: 24 | E52: 139
C53: Klinika ústní,čelistní a obl. | D53: 25 | E53: 193
C54: Klinika rehabilit. a tělových. | D54: 26 | E54: 3612
C55: Oddělení plastické a estetické | D55: 29 | E55: 1044
C56: Oddělení geriatrie | D56: 30 | E56: 1271
C57: Traumatologické oddělení | D57: 31 | E57: 566
C58: Hemato-onkologická klinika | D58: 32 | E58: 9941
C59: Odděl.klin.biochemie a imunoge | D59: 33 | E59: 1261
C60: Radiologická klinika | D60: 34 | E60: 2925
C61: Transfůzní oddělení | D61: 35 | E61: 1564
C62: Oddělení klinické logopedie | D62: 36 | E62: 89
C63: Ústav soudního lékařství a med | D63: 38 | E63: 503
C64: Oddělení klinické psychologie | D64: 39 | E64: 307
C65: Ústav mikrobiologie | D65: 40 | E65: 122
C66: Ústav imunologie | D66: 41 | E66: 397
C67: Ústav farmakologie | D67: 43 | E67: 9
C68: Sociální oddělení | D68: 45 | E68: 83
C69: Transplantační centrum | D69: 46 | E69: 56
C70: Centrální operační sály | D70: 47 | E70: 44
C71: Lékárna | D71: 48 | E71: 3519
C72: Kardiochirurgická klinika | D72: 50 | E72: 6677
C73: Oddělení lékařské fyziky a rad | D73: 53 | E73: 56
C74: Oddělení centrální sterilizace | D74: 56 | E74: 66
C75: Oddělení int.péče chir.oborů | D75: 59 | E75: 1671
C76: Oddělení urgentního příjmu | D76: 60 | E76: 1295

Sheet Ztrátové kliniky FN Olomouc-0 (hidden)
A1: Ztrátové kliniky FN Olomouc
A2: =dat_obdobi -> 1-2/2010
C30: Klinika | D30: Klinika č. | E30: Ztráta
C31: I. Interní klinika | D31: 01 | E31: 2144
C32: II. Interní klinika | D32: 02 | E32: 1484
C33: I. Chirurgická klinika | D33: 04 | E33: 3686
C34: II. Chirurgická klinika | D34: 05 | E34: 934
C35: Neurochirurgická klinika | D35: 06 | E35: 264
C36: Porodnicko-gynekologická klini | D36: 08 | E36: 3591
C37: Dětská klinika | D37: 10 | E37: 2009
C38: Ortopedická klinika | D38: 11 | E38: 2775
C39: Urologická klinika | D39: 12 | E39: 3454
C40: Otolaryngologická klinika | D40: 13 | E40: 2337
C41: Oční klinika | D41: 14 | E41: 3178
C42: Oddělení alergologie | D42: 15 | E42: 415
C43: Klinika plicních nemocí a tube | D43: 16 | E43: 3968
C44: Neurologická klinika | D44: 17 | E44: 3334
C45: Klinika psychiatrie | D45: 18 | E45: 2472
C46: Klinika pracovního lékařství | D46: 19 | E46: 677
C47: Klinika chorob kožních a pohl. | D47: 20 | E47: 1560
C48: Klinika zubního lékařství | D48: 24 | E48: 1049
C49: Klinika ústní,čelistní a obl. | D49: 25 | E49: 569
C50: Oddělení plastické a estetické | D50: 29 | E50: 1641
C51: Oddělení geriatrie | D51: 30 | E51: 2519
C52: Traumatologické oddělení | D52: 31 | E52: 2278
C53: Hemato-onkologická klinika | D53: 32 | E53: 3307
C54: Oddělení klinické logopedie | D54: 36 | E54: 177
C55: Ústav soudního lékařství a med | D55: 38 | E55: 1202
C56: Oddělení klinické psychologie | D56: 39 | E56: 154
C57: Ústav farmakologie | D57: 43 | E57: 197
C58: Sociální oddělení | D58: 45 | E58: 454
C59: Transplantační centrum | D59: 46 | E59: 202
C60: Centrální operační sály | D60: 47 | E60: 8889
C61: Lékárna | D61: 48 | E61: 792
C62: Kardiochirurgická klinika | D62: 50 | E62: 1734
C63: Oddělení lékařské fyziky a rad | D63: 53 | E63: 845
C64: Oddělení centrální sterilizace | D64: 56 | E64: 3487
C65: Oddělení urgentního příjmu | D65: 60 | E65: 6546

Sheet Vývoj stavu zásob-5
A1: Vývoj stavu zásob
A2: =CONCATENATE(" v průběhu roku ",dat_rok) -> v průběhu roku 2010
B31: Poč.stav | C31: leden | D31: únor | E31: březen | F31: duben | G31: květen | H31: červen | I31: červenec | J31: srpen | K31: září | L31: říjen | M31: listopad | N31: prosinec
A32: Zásoby celkem | B32: 63132 | C32: 65896 | D32: 64030
A33: Léky | B33: 34109 | C33: 38614 | D33: 35127
A34: z toho RTG diagn. | B34: 313 | C34: 258 | D34: 117
A35: Krev | B35: 16522 | C35: 14695 | D35: 15676
A36: SZM | B36: 4824 | C36: 4812 | D36: 5758
A37: z toho lab. diagn.*
A38: Mater.na cestě | B38: 787 | C38: 1296 | D38: 1024
A40: * včetně meziskladů

Sheet Přehled o čerpání nákladů-6
B1: =CONCATENATE("Přehled o čerpání nákladů roku ",dat_rok) -> Přehled o čerpání nákladů roku 2010
E3: (v tis.Kč)
A5: Položka | B5: =PLAN_rok -> PLÁN 2010 | C5: Poměr pl. | D5: =Skut_typobd -> Skut. 1-2/2010 | E5: SK/PL v %
A6: 501 10 Biologické implantáty | B6: 4200 | C6: =B6/12*(MONTH(dat_do)-MONTH(dat_od)+1) -> 700 | D6: 1298.126 | E6: =IF(B6<>0,D6/B6*100,0) -> 30.9077619
A7: 501 12 PHM | B7: 2185 | C7: =B7/12*(MONTH(dat_do)-MONTH(dat_od)+1) -> 364.1666667 | D7: 400.49165 | E7: 18.3291373
A8: 501 13 Léky | B8: 832484 | C8: 138747.3333 | D8: 149681.8968 | E8: 17.98015299
A9: 501 14 Krev | B9: 49954 | C9: 8325.666667 | D9: 7977.10338 | E9: 15.96889815
A10: 501 15 SZM | B10: 658938 | C10: 109823 | D10: 141397.7906 | E10: 21.45843624
A11: 501 16 Potraviny | B11: 38751 | C11: 6458.5 | D11: 6510.32697 | E11: 16.80041023
A12: 501 17 Všeobecný materiál | B12: 34889 | C12: 5814.833333 | D12: 6228.97414 | E12: 17.85369068
A13: 501 18 Náhradní díly | B13: 13412 | C13: 2235.333333 | D13: 1613.28463 | E13: 12.0286656
A14: 501 19 DHM a textil | B14: 25000 | C14: 4166.666667 | D14: 5242.27788 | E14: 20.96911152
A15: 501 60 Knihy a časopisy | B15: 400 | C15: 66.66666667 | D15: 121.762 | E15: 30.4405
A16: 501 80 Spotř.nák.-z darů, kl.stud. | B16: 4000 | C16: 666.6666667 | D16: 448.5747 | E16: 11.2143675
A17: 502 Spotřeba energie | B17: 109812 | C17: 18302 | D17: 25910.70894 | E17: 23.59551683
A18: 504 01 Prodané zboží | B18: 3532 | C18: 588.6666667 | D18: 545.71722 | E18: 15.45065742
A19: 504 95 Prodané LS | B19: 338918 | C19: 56486.33333 | D19: 44890.46322 | E19: 13.24522841
A20: 501 99 Opravy nákl. min. let | B20: 0 | C20: 0 | D20: 0 | E20: 0
A21: Spotřebované nákupy | B21: =SUM(B6:B20) -> 2116475 | C21: 352745.8333 | D21: =SUM(D6:D20) -> 392267.4982 | E21: 18.53400102
A22: 511 Opravy a udržování | B22: 47306 | C22: 7884.333333 | D22: 6298.57202 | E22: 13.31453097
A23: 512 Cestovné | B23: 2850 | C23: 475 | D23: 497.57898 | E23: 17.45891158
A24: 513 Náklady na reprezentaci | B24: 300 | C24: 50 | D24: 14.541 | E24: 4.847
A25: 518 01 Přepravné | B25: 450 | C25: 75 | D25: 60.89384 | E25: 13.53196444
A26: 518 02 Spoje | B26: 5800 | C26: 966.6666667 | D26: 1004.56888 | E26: 17.3201531
A27: 518 04 Nájemné | B27: 11675 | C27: 1945.833333 | D27: 1823.76081 | E27: 15.6210776
A28: 518 Ostatní služby | B28: 124487 | C28: 20747.83333 | D28: 18739.57513 | E28: 15.05343942
A29: 521 Osobní náklady | B29: 1145130 | C29: 190855 | D29: 193239.034 | E29: 16.87485561
A30: 524 Zákonné sociální pojištění | B30: 389344 | C30: 64890.66667 | D30: 65811.8 | E30: 16.90325265
A31: 525 Ostatní sociální pojištění | B31: 4777 | C31: 796.1666667 | D31: 0 | E31: 0
A32: 527 Zákon. soc. poj. (FKSP) | B32: 22747 | C32: 3791.166667 | D32: 3832.72324 | E32: 16.84935701
A33: 528 Náhrady-prac.nesch. | B33: 1100 | C33: 183.3333333 | D33: 238.621 | E33: 21.69281818
A34: 53 Daně a poplatky | B34: 725 | C34: 120.8333333 | D34: 46.25619 | E34: 6.380164138
A35: 54x,55x,56x Ostatní fin.náklady | B35: 9407 | C35: 1567.833333 | D35: 4054.03259 | E35: 43.09591357
A36: 551 Odpisy | B36: 272360 | C36: 45393.33333 | D36: 45351.848 | E36: 16.65143487
A37: 552,553 ZC prod.DNM, DHM | B37: 0 | C37: 0 | D37: 0 | E37: 0
A38: 544,554 Prodaný mat. a pozemky | B38: 36100 | C38: 6016.666667 | D38: 6934.95983 | E38: 19.21041504
A39: 555 Tvorba zák. rez. a opr.pol. | B39: 0 | C39: 0 | D39: 0 | E39: 0
A40: 59 Daň z příjmů | B40: 4195 | C40: 699.1666667 | D40: 0 | E40: 0
A41: Přímé náklady celkem | B41: =SUM(B21:B40) -> 4195228 | C41: =SUM(C21:C40) -> 699204.6667 | D41: =SUM(D21:D40) -> 740216.2637 | E41: 17.64424398

Sheet Náklady FN Olomouc v tis.Kč-7 (hidden)
A1: Náklady FN Olomouc v tis. Kč
A2: =dat_obdobi -> 1-2/2010
C24: Náklady FN Olomouc v tis. Kč
C25: Léky | D25: 149682
C26: Krev | D26: 7977
C27: SZM | D27: 141398
C28: Potraviny | D28: 6510
C29: Energie | D29: 25911
C30: Osobní náklady | D30: 263122
C31: Odpisy | D31: 45352
C32: Prodané zboží LS | D32: 44890
C33: Ostatní | D33: =D34-SUM(D25:D32) -> 55374
C34: Celkem | D34: 740216
A37: Podíl ukazatelů z celkových nákladů
A38: =dat_obdobi -> 1-2/2010

Sheet Čerpání vybraných nákladů-8 (hidden)
A1: Čerpání vybraných nákladů
A2: =CONCATENATE(" v jednotlivých měsících roku ", dat_rok) -> v jednotlivých měsících roku 2010
A27: Název | B27: rozpočet | C27: leden | D27: únor | E27: březen | F27: duben | G27: květen | H27: červen | I27: červenec | J27: srpen | K27: září | L27: říjen | M27: listopad | N27: prosinec
A28: Léky | B28: 69374 | C28: 78495 | D28: 71187
A29: Krev | B29: 4163 | C29: 4347 | D29: 3630
A30: SZM | B30: 54912 | C30: 63572 | D30: 77825

Sheet Přehled o výnosech roku-9
B1: =CONCATENATE("Přehled o výnosech roku ",dat_rok) -> Přehled o výnosech roku 2010
E3: (v tis. Kč)
A5: Položka | B5: =PLAN_rok -> PLÁN 2010 | C5: Poměr pl. | D5: =Skut_typobd -> Skut. 1-2/2010 | E5: SK/PL v %
A6: 601 Tržby za vlastní výrobky | B6: 0 | C6: =B6/12*(MONTH(dat_do)-MONTH(dat_od)+1) -> 0 | D6: 0 | E6: =IF(B6<>0,D6/B6*100,0) -> 0
A7: 602 10,11,13,14 Zdrav. sl. za úhr. | B7: 56685 | C7: =B7/12*(MONTH(dat_do)-MONTH(dat_od)+1) -> 9447.5 | D7: 9158.94533 | E7: 16.15761724
A8: 602 27,28, 29 Zdrav. výk. - běžný rok | B8: 72479 | C8: 12079.83333 | D8: 10714.74658 | E8: 14.78324284
A9: 602 40,42,43,46 Zdrav.vyk.-min.let | B9: 0 | C9: 0 | D9: 24913.43548 | E9: 0
A10: 602 45 Fakturace ZP - běžný rok | B10: 3319200 | C10: 553200 | D10: 526672.4841 | E10: 15.86745252
A11: 602 Ostatní služby | B11: 960 | C11: 160 | D11: 169.0791 | E11: 17.61240625
A12: 604 Prodej zboží | B12: 4330 | C12: 721.6666667 | D12: 702.15264 | E12: 16.2159963
A13: 604 Prodané léky a léčiva | B13: 381635 | C13: 63605.83333 | D13: 50015.82699 | E13: 13.10567086
A14: 62 Aktivace - krev a KV | B14: 82795 | C14: 13799.16667 | D14: 13287.92924 | E14: 16.04919287
A15: 648 01,02,03 Použití RF | B15: 2000 | C15: 333.3333333 | D15: 163.25218 | E15: 8.162609
A16: 648 04 Použití FRM | B16: 47266 | C16: 7877.666667 | D16: 6236.63351 | E16: 13.19475629
A17: 603,649 11,14,25 Tržby z nájem. | B17: 30350 | C17: 5058.333333 | D17: 5491.52727 | E17: 18.0939943
A18: 64x,66x, Ostatní výnosy | B18: 155183 | C18: 25863.83333 | D18: 49596.59631 | E18: 31.96007057
A19: 644,645,646 Tržby z prod. mat. a majetku | B19: 43120 | C19: 7186.666667 | D19: 7786.48616 | E19: 18.05771373
A20: 67x Výnosy z nároků na pr.SR,ÚSC,ost. | B20: 20200 | C20: 3366.666667 | D20: 0 | E20: 0
A21: Přímé výnosy celkem | B21: 4216203 | C21: =B21/12*(MONTH(dat_do)-MONTH(dat_od)+1) -> 702700.5 | D21: 704908.6958 | E21: =IF(B21<>0,D21/B21*100,0) -> 16.71904071

Sheet Výnosy FN Olomouc v tis.Kč-10 (hidden)
A1: Výnosy FN Olomouc v tis. Kč
A2: =dat_obdobi -> 1-2/2010
C23: Výnosy FN Olomouc v tis. Kč
C24: Provozní dotace | D24: 0
C25: Výkony pro zdr.poj. | D25: 562300.6661
C26: Aktivace | D26: 13287.92924
C27: Tržby za léčiva | D27: 50015.82699
C28: Ostatní výnosy | D28: =D29-SUM(D23:D27) -> 79304.27348
C29: Celkem | D29: 704908.6958
A34: Podíl ukazatelů z celkových výnosů
A35: =dat_obdobi -> 1-2/2010

Sheet Srovnání nákladů, výnosů a m-11 (hidden)
A1: Srovnání nákladů, výnosů a os. nákladů
A2: =CONCATENATE(" v jednotlivých měsících roku ",dat_rok) -> v jednotlivých měsících roku 2010
B31: leden | C31: únor | D31: březen | E31: duben | F31: květen | G31: červen | H31: červenec | I31: srpen | J31: září | K31: říjen | L31: listopad | M31: prosinec
A32: př. náklady | B32: 368455 | C32: 371761 | D32: 0 | E32: 0 | F32: 0 | G32: 0 | H32: 0 | I32: 0 | J32: 0 | K32: 0 | L32: 0 | M32: 0
A33: př. výnosy | B33: 347098 | C33: 357811 | D33: 0 | E33: 0 | F33: 0 | G33: 0 | H33: 0 | I33: 0 | J33: 0 | K33: 0 | L33: 0 | M33: 0
A34: os. náklady | B34: 132481 | C34: 130641 | D34: 0 | E34: 0 | F34: 0 | G34: 0 | H34: 0 | I34: 0 | J34: 0 | K34: 0 | L34: 0 | M34: 0

Sheet Srovnání nákladů a výnosů mě-12
A1: =CONCATENATE(" Srovnání nákladů a výnosů v roce ",dat_rok) -> Srovnání nákladů a výnosů v roce 2010
A2: =CONCATENATE(" se stejným obdobím roku ",dat_rok-1) -> se stejným obdobím roku 2009
A6: Položka | B6: =mesic_rokpredchoz -> 2009-02-27 | C6: % | D6: =mesic_rok -> 2010-02-28 | E6: % | F6: Rozdíl
A7: Léky | B7: 65027 | C7: =B7/B$19*100 -> 20.28639966 | D7: 71187 | E7: =D7/D$19*100 -> 17.98303909 | F7: =D7-B7 -> 6160
A8: Krev | B8: 3003 | C8: 0.9368425143 | D8: 3630 | E8: 0.9169993384 | F8: =D8-B8 -> 627
A9: SZM | B9: 44363 | C9: 13.83987495 | D9: 77825 | E9: 19.65991006 | F9: 33462
A10: Potraviny | B10: 3082 | C10: 0.961488055 | D10: 3268 | E10: 0.8255520215 | F10: 186
A11: Všeobecný materiál | B11: 3025 | C11: 0.9437058294 | D11: 3080 | E11: 0.7780600447 | F11: 55
A12: Spotřeba energie | B12: 10887 | C12: 3.396405079 | D12: 11932 | E12: 3.014224823 | F12: 1045
A13: Opravy a udržování | B13: 3281 | C13: 1.02356986 | D13: 4262 | E13: 1.076653218 | F13: 981
A14: Osobní náklady | B14: 110977 | C14: 34.6213692 | D14: 130641.267 | E14: 33.00219158 | F14: 19664.26702
A15: Odpisy | B15: 22448 | C15: 7.003077177 | D15: 23036 | E15: 5.819282854 | F15: 588
A16: Vnitropodnik. náklady | B16: 18889.22762 | C16: 5.892850981 | D16: 24095.05812 | E16: 6.086818831 | F16: 5205.8305
A17: Ostatní náklady | B17: =B19- SUM(B7:B16) - B18 -> 35562.57624 | C17: 11.0944167 | D17: =D19- SUM(D7:D16) - D18 -> 42900.01279 | E17: 10.83726814 | F17: 7337.43655
A18: Opravy nákladů min. let | B18: 0 | C18: 0 | D18: 0 | E18: 0 | F18: 0
A19: Náklady celkem | B19: 320544.8039 | C19: 100 | D19: 395856.3379 | E19: 100 | F19: 75311.53407
A20: Tržby za vl. výrobky | B20: 0 | C20: =B20/B$35*100 -> 0 | D20: 0 | E20: =D20/D$35*100 -> 0 | F20: 0
A21: Zdr. služby za úhradu | B21: 4917.99607 | C21: 1.451361374 | D21: 5093.13907 | E21: 1.333611332 | F21: 175.143
A22: Tržby z nájemného | B22: 3008.0016 | C22: 0.8876984188 | D22: 2568.0026 | E22: 0.6724177997 | F22: -439.999
A23: Zdrav. výk. - běžný rok | B23: 9154.48397 | C23: 2.701601271 | D23: 5802.00882 | E23: 1.519225099 | F23: -3352.47515
A24: Zdrav. výk. - min. let | B24: 479.44323 | C24: 0.1414896179 | D24: 2900.03237 | E24: 0.7593580261 | F24: 2420.58914
A25: Fakturace ZP - běžný rok | B25: 253692.144 | C25: 74.86768461 | D25: 264062.3179 | E25: 69.14331113 | F25: 10370.17388
A26: Ostatní služby | B26: 3.8961 | C26: 0.001149787224 | D26: 167.9999 | E26: 0.04398987879 | F26: 164.1038
A27: Tržby za prodané léky | B27: 25583 | C27: 7.549859231 | D27: 24552 | E27: 6.428810398 | F27: -1031
A28: Ost. tržby za prodané zboží | B28: 321 | C28: 0.09473106412 | D28: 364 | E28: 0.09531146078 | F28: 43
A29: Aktivace - krev a KV | B29: 5776 | C29: 1.704568929 | D29: 7037 | E29: 1.84260096 | F29: 1261
A30: Tržby z prodeje materiálu a majetku | B30: 4541 | C30: 1.340105178 | D30: 3306.65846 | E30: 0.8658309014 | F30: -1234.34154
A31: Provozní dotace od zřizovatele | B31: 306 | C31: 0.09030437888 | D31: 0 | E31: 0 | F31: -306
A32: Vnitropodnik. výnosy | B32: 18889 | C32: 5.574377165 | D32: 24095.05812 | E32: 6.309162601 | F32: 5206.05812
A33: Použití rezervního fondu | B33: 192 | C33: 0.05666157106 | D33: 62 | E33: 0.01623436969 | F33: -130
A34: Ostatní výnosy | B34: =B35 - SUM(B20:B33) -> 11990.03503 | C34: 3.538407406 | D34: =D35 - SUM(D20:D33) -> 41895.58617 | E34: 10.97013604 | F34: 29905.55114
A35: Výnosy celkem | B35: 338854 | C35: 100 | D35: 381905.8034 | E35: 100 | F35: 43051.80339
A36: Hospodářský výsledek | B36: =B35-B19 -> 18309.19614 | D36: =D35-D19 -> -13950.53454 | F36: -32259.73068
A37: Průměrný počet lůžek | B37: 1396 | D37: 1393 | F37: -3
A38: Počet oš. dnů | B38: 29045 | D38: 28357 | F38: -688
A39: Prům. nákl. na lůžkoden (hospit.) | B39: 2867.547366 | D39: 3553.754449 | F39: 686.2070828
A40: Prům. náklady na oš. den FNO | B40: 9590.686664 | D40: 12324.73321 | F40: 2734.04655
A43: Rozdíl:
A44: úspora nákladů (-)
A45: překročení nákladů (+)
A46: snížení výnosů (-)
A47: překročení výnosů (+)

Sheet Srovnání nákladů a výnosů na-13
A1: Srovnání nákladů a výnosů v roce | D1: =dat_rok -> 2010
A2: se stejným obdobím roku | C2: =dat_rok-1 -> 2009
A6: Položka | B6: =dat_obdobirokpredch -> 1-2/2009 | C6: % | D6: =dat_obdobi -> 1-2/2010 | E6: % | F6: Rozdíl
A7: Léky | B7: 129162 | C7: =B7/B$19*100 -> 19.36305007 | D7: 149682 | E7: =D7/D$19*100 -> 18.98713834 | F7: =D7-B7 -> 20520
A8: Krev | B8: 5542 | C8: 0.8308172952 | D8: 7977 | E8: 1.011881205 | F8: =D8-B8 -> 2435
A9: SZM | B9: 92337 | C9: 13.8425075 | D9: 141398 | E9: 17.93631424 | F9: 49061
A10: Potraviny | B10: 6170 | C10: 0.9249625967 | D10: 6510 | E10: 0.8257924842 | F10: 340
A11: Všeobecný materiál | B11: 5861 | C11: 0.8786395104 | D11: 6229 | E11: 0.790147678 | F11: 368
A12: Spotřeba energie | B12: 23503 | C12: 3.523402903 | D12: 25911 | E12: 3.286806307 | F12: 2408
A13: Opravy a udržování | B13: 4235 | C13: 0.6348811341 | D13: 6299 | E13: 0.7990271671 | F13: 2064
A14: Osobní náklady | B14: 226411 | C14: 33.94192974 | D14: 263122.1782 | E14: 33.37700725 | F14: 36711.17824
A15: Odpisy | B15: 44420 | C15: 6.659131045 | D15: 45352 | E15: 5.752894123 | F15: 932
A16: Vnitropodnik. náklady | B16: 42070 | C16: 6.306835728 | D16: 48117.37987 | E16: 6.103682128 | F16: 6047.37987
A17: Ostatní náklady | B17: =B19 - SUM(B7:B16) - B18 -> 87343 | C17: 13.09384248 | D17: =D19 - SUM(D7:D16) - D18 -> 87736.088 | E17: 11.12930907 | F17: 393.088
A18: Opravy nákladů min. let | B18: 0 | C18: 0 | D18: 0 | E18: 0 | F18: 0
A19: Náklady celkem | B19: 667054 | C19: 100 | D19: 788333.6461 | E19: =SUM(E7:E17) -> 100 | F19: 121279.6461
A20: Tržby za vl. výrobky | B20: 0 | C20: =B20/B$35*100 -> 0 | D20: 0 | E20: =D20/D$19*100 -> 0 | F20: 0
A21: Zdr. služby za úhradu | B21: 9099.82561 | C21: 1.3152774 | D21: 9158.94533 | E21: 1.161810786 | F21: 59.11972
A22: Tržby z nájemného | B22: 5809.66052 | C22: 0.8397210576 | D22: 5491.52727 | E22: 0.6965993773 | F22: -318.13325
A23: Zdrav. výk. - běžný rok | B23: 21004.45898 | C23: 3.035958202 | D23: 10714.74658 | E23: 1.359163932 | F23: -10289.7124
A24: Zdrav. výk. - min. let | B24: 460.87999 | C24: 0.06661501671 | D24: 24913.43548 | E24: 3.160265403 | F24: 24452.55549
A25: Fakturace ZP - běžný rok | B25: 507395.2192 | C25: 73.3382697 | D25: 526672.4841 | E25: 66.80832243 | F25: 19277.26488
A26: Ostatní služby | B26: 225.6291 | C26: 0.03261214761 | D26: 169.0791 | E26: =D26/D$35*100 -> 0.02245328621 | F26: -56.55
A27: Tržby za prodané léky | B27: 60350 | C27: 8.722913439 | D27: 50016 | E27: 6.642001069 | F27: -10334
A28: Ost. tržby za prodané zboží | B28: 612 | C28: 0.08845771374 | D28: 702 | E28: 0.09322386337 | F28: 90
A29: Aktivace - krev a KV | B29: 11817 | C29: 1.708014384 | D29: 13288 | E29: 1.764613528 | F29: 1471
A30: Tržby z prodeje materiálu a majetku | B30: 6511 | C30: 0.9410917879 | D30: 7786.48616 | E30: 1.0340261 | F30: 1275.48616
A31: Provozní dotace od zřizovatele | B31: 612 | C31: 0.08845771374 | D31: 0 | E31: 0 | F31: -612
A32: Vnitropodnik. výnosy | B32: 42070 | C32: 6.080745126 | D32: 48117.37987 | E32: 6.389869013 | F32: 6047.37987
A33: Použití rezerv. Fondu | B33: 380 | C33: 0.05492472422 | D33: 163 | E33: 0.02164599677 | F33: -217
A34: Ostatní výnosy | B34: =B35 - SUM(B20:B33) -> 25508.3266 | C34: 3.686941589 | D34: =D35 - SUM(D20:D33) -> 55832.99185 | E34: 7.414483197 | F34: 30324.66525
A35: Výnosy celkem | B35: 691856 | C35: 100 | D35: 753026.0757 | E35: 100 | F35: 61170.07572
A36: Hospodářský výsledek | B36: =B35-B19 -> 24802 | D36: =D35-D19 -> -35307.57039 | F36: -60109.57039
A37: Průměrný počet lůžek | B37: 1396 | D37: 1393 | F37: -3
A38: Počet oš. dnů | B38: 57935 | D38: 57656 | F38: -279
A39: Prům. nákl. na lůžkoden (hospit.) | B39: 1437.609618 | D39: 3547.798055 | F39: 2110.188436
A40: Prům. náklady na oš. den FNO | B40: 9840.947112 | D40: 12050.43856 | F40: 2209.491451
A43: Rozdíl:
A44: úspora nákladů (-)
A45: překročení nákladů (+)
A46: snížení výnosů (-)
A47: překročení výnosů (+)

Sheet Srovnání měs.přímých nákladů-14
A1: Srovnání měsíčních přímých nákladů
A2: =CONCATENATE("v letech ",(dat_rok - 3)," - ",(dat_rok)) -> v letech 2007 - 2010
G25: =dat_rok-3 -> 2007 | H25: =dat_rok-2 -> 2008 | I25: =dat_rok-1 -> 2009 | J25: =dat_rok -> 2010
F26: leden | G26: 281893 | H26: 314446 | I26: 323329 | J26: 368455
F27: únor | G27: 256650 | H27: 291124 | I27: 301656 | J27: 371761
F28: březen | G28: 290042 | H28: 307756 | I28: 333821
F29: duben | G29: 272114 | H29: 310025 | I29: 334925
F30: květen | G30: 281236 | H30: 299979 | I30: 323913
F31: červen | G31: 308643 | H31: 241350 | I31: 327130
F32: červenec | G32: 288462 | H32: 323227 | I32: 340500
F33: srpen | G33: 282016 | H33: 295521 | I33: 322292
F34: září | G34: 268948 | H34: 314214 | I34: 368941
F35: říjen | G35: 304485 | H35: 325578 | I35: 382151
F36: listopad | G36: 317797 | H36: 330337 | I36: 396024
F37: prosinec | G37: 374472 | H37: 198450 | I37: 475105

Sheet Náklady na lůžkoden-15
A1: Náklady na lůžkoden
A2: =CONCATENATE("ve FN Olomouc v roce ",dat_rok) -> ve FN Olomouc v roce 2010
A8: Počet ošetř. dnů | B8: 28357 | D8: =mesic_rok -> 2010-02-28
A9: Druh nákladu | B9: v tis. Kč | C9: Kč/den | D9: %
A10: Léky a léčiva | B10: 15091.10693 | C10: =B10*1000/B8 -> 532.1827743 | D10: =C10/C17*100 -> 14.9752264
A11: Krev a KV | B11: 3432.834 | C11: =B11*1000/B8 -> 121.0577283 | D11: =C11/C17*100 -> 3.406474195
A12: ZPr | B12: 4249.72508 | C12: =B12*1000/B8 -> 149.8651155 | D12: =C12/C17*100 -> 4.217092589
A13: Potraviny | B13: 1744.18272 | C13: =B13*1000/B8 -> 61.50801284 | D13: =C13/C17*100 -> 1.730789612
A14: Prádlo | B14: 330.43198 | C14: =B14*1000/B8 -> 11.65257185 | D14: =C14/C17*100 -> 0.3278946821
A15: Osobní náklady | B15: 52722.72987 | C15: =B15*1000/B8 -> 1859.249211 | D15: =C15/C17*100 -> 52.31788627
A16: Ost.nákl. v lůžkové č. | B16: =B17-SUM(B10:B15) -> 23202.80432 | C16: =B16*1000/B8 -> 818.2390352 | D16: =C16/C17*100 -> 23.02463625
A17: Náklady celkem | B17: 100773.8149 | C17: =SUM(C10:C16) -> 3553.754449 | D17: =SUM(D10:D16) -> 100
A22: Počet ošetř. dnů | B22: 57656 | D22: =dat_obdobi -> 1-2/2010
A23: Druh nákladu | B23: v tis. Kč | C23: Kč/den | D23: %
A24: Léky a léčiva | B24: 30968.25308 | C24: =B24*1000/B22 -> 537.1210816 | D24: =C24/C31*100 -> 15.13956187
A25: Krev a KV | B25: 7236.817 | C25: =B25*1000/B22 -> 125.5171535 | D25: =C25/C31*100 -> 3.537888897
A26: SZM | B26: 8854.30399 | C26: =B26*1000/B22 -> 153.57125 | D26: =C26/C31*100 -> 4.328635611
A27: Potraviny | B27: 3523.83809 | C27: =B27*1000/B22 -> 61.11832403 | D27: =C27/C31*100 -> 1.72271147
A28: Prádlo | B28: 629.18973 | C28: =B28*1000/B22 -> 10.91282312 | D28: =C28/C31*100 -> 0.3075942586
A29: Osobní náklady | B29: 107139.9723 | C29: =B29*1000/B22 -> 1858.26232 | D29: =C29/C31*100 -> 52.37790572
A30: Ost.nákl. v lůžkové č. | B30: =B31-SUM(B24:B29) -> 46199.47041 | C30: =B30*1000/B22 -> 801.2951022 | D30: =C30/C31*100 -> 22.58570217
A31: Náklady celkem | B31: 204551.8446 | C31: =SUM(C24:C30) -> 3547.798055 | D31: =SUM(D24:D30) -> 100

Sheet DA19-lůžkový fond-16 (hidden)
B1: DA19 - L Ů Ž K O V Ý F O N D a jeho využití včetně SVLS
G3: =dat_obdobi -> 1-2/2010
M7: Počet dnů: | O7: =dat_do - dat_od +1 -> 59
A9: Klinika | B9: Prům. | C9: Počet ošetřovanců | H9: Prům. | I9: Skut. | J9: Uzav. | K9: Počet | L9: Využ.lůžek | N9: Prům. | O9: Počet
B10: Poč. | C10: PŘIJ. | D10: TR + | E10: PROP. | F10: TR - | G10: ÚMRTÍ | H10: denní | I10: lůžko. | J10: lůžka | K10: ošetř. | L10: dny | M10: (%) | N10: ošetř. | O10: hosp.
B11: lůž. | H11: p.hos | I11: kapac. | K11: dnů | N11: doba
A12: I.interní klinika | B12: 63 | C12: 560 | D12: 24 | E12: 490 | F12: 63 | G12: 4 | H12: 54 | I12: 3633 | J12: 84 | K12: 3179 | L12: 50.46031746 | M12: 88 | N12: 5.567425569 | O12: 571
A13: II.interní klinika | B13: 62 | C13: 379 | D13: 18 | E13: 334 | F13: 43 | G13: 12 | H13: 48 | I13: 3658 | J13: 0 | K13: 2848 | L13: 45.93548387 | M13: 78 | N13: 7.246819338 | O13: 393
A14: III.interní klinika | B14: 70 | C14: 383 | D14: 36 | E14: 330 | F14: 63 | G14: 13 | H14: 50 | I14: 3644 | J14: 486 | K14: 2943 | L14: 42.04285714 | M14: 81 | N14: 7.12590799 | O14: 413
A15: Geriatrické oddělení | B15: 90 | C15: 20 | D15: 139 | E15: 113 | F15: 6 | G15: 10 | H15: 50 | I15: 3137 | J15: 2173 | K15: 2963 | L15: 32.92222222 | M15: 94 | N15: 20.57638889 | O15: 144
A16: Alergologické oddělení | B16: 0 | C16: 0 | D16: 0 | E16: 0 | F16: 0 | G16: 0 | H16: 0 | I16: 0 | J16: 0 | K16: 0 | L16: 0 | M16: 0 | N16: 0 | O16: 0
A17: Klinika TRN | B17: 61 | C17: 371 | D17: 34 | E17: 331 | F17: 31 | G17: 13 | H17: 49 | I17: 3503 | J17: 96 | K17: 2874 | L17: 47.1147541 | M17: 82 | N17: 7.369230769 | O17: 390
A18: Neurologická klinika | B18: 72 | C18: 378 | D18: 11 | E18: 322 | F18: 49 | G18: 3 | H18: 59 | I18: 4158 | J18: 90 | K18: 3474 | L18: 48.25 | M18: 84 | N18: 9.094240838 | O18: 382
A19: Psychiatrická klinika | B19: 90 | C19: 148 | D19: 7 | E19: 126 | F19: 1 | G19: 0 | H19: 48 | I19: 3356 | J19: 1954 | K19: 2824 | L19: 31.37777778 | M19: 84 | N19: 20.02836879 | O19: 141
A20: Klinika nemoci z povolání | B20: 18 | C20: 97 | D20: 0 | E20: 87 | F20: 1 | G20: 0 | H20: 14 | I20: 1008 | J20: 54 | K20: 800 | L20: 44.44444444 | M20: 79 | N20: 8.602150538 | O20: 93
A21: Dětská klinika | B21: 100 | C21: 963 | D21: 1 | E21: 932 | F21: 0 | G21: 1 | H21: 74 | I21: 5900 | J21: 0 | K21: 4346 | L21: 43.46 | M21: 74 | N21: 4.579557429 | O21: 949
A22: Por. - gyn. Klinika | B22: 87 | C22: 668 | D22: 6 | E22: 648 | F22: 5 | G22: 1 | H22: 56 | I22: 4517 | J22: 616 | K22: 3299 | L22: 37.91954023 | M22: 73 | N22: 4.968373494 | O22: 664
A23: Novorozenecké oddělení | B23: 50 | C23: 387 | D23: 0 | E23: 391 | F23: 1 | G23: 0 | H23: 47 | I23: 2950 | J23: 0 | K23: 2765 | L23: 55.3 | M23: 94 | N23: 7.08974359 | O23: 390
A24: I.chirurgická klinika | B24: 86 | C24: 412 | D24: 119 | E24: 366 | F24: 111 | G24: 7 | H24: 60 | I24: 4696 | J24: 378 | K24: 3568 | L24: 41.48837209 | M24: 76 | N24: 7.023622047 | O24: 508
A25: II.chirurgická klinika | B25: 33 | C25: 264 | D25: 12 | E25: 233 | F25: 16 | G25: 1 | H25: 28 | I25: 1947 | J25: 0 | K25: 1650 | L25: 50 | M25: 85 | N25: 6.273764259 | O25: 263
A26: Neurochirurgická klinika | B26: 44 | C26: 237 | D26: 25 | E26: 232 | F26: 14 | G26: 5 | H26: 28 | I26: 2319 | J26: 277 | K26: 1678 | L26: 38.13636364 | M26: 72 | N26: 6.529182879 | O26: 257
A27: Plastická a est.chirurgie | B27: 18 | C27: 137 | D27: 8 | E27: 129 | F27: 6 | G27: 0 | H27: 11 | I27: 1008 | J27: 54 | K27: 631 | L27: 35.05555556 | M27: 63 | N27: 4.507142857 | O27: 140
A28: Traumatologické oddělení | B28: 33 | C28: 355 | D28: 10 | E28: 306 | F28: 45 | G28: 1 | H28: 23 | I28: 1947 | J28: 0 | K28: 1362 | L28: 41.27272727 | M28: 70 | N28: 3.793871866 | O28: 359
A29: Kl.anestez.-resuscitační | B29: 10 | C29: 40 | D29: 36 | E29: 13 | F29: 40 | G29: 31 | H29: 7 | I29: 550 | J29: 40 | K29: 431 | L29: 43.1 | M29: 78 | N29: 5.3875 | O29: 80
A30: Ortopedická klinika | B30: 72 | C30: 438 | D30: 13 | E30: 385 | F30: 33 | G30: 0 | H30: 39 | I30: 2863 | J30: 1385 | K30: 2295 | L30: 31.875 | M30: 80 | N30: 5.275862069 | O30: 435
A31: Urologická klinika | B31: 32 | C31: 249 | D31: 98 | E31: 221 | F31: 100 | G31: 1 | H31: 24 | I31: 1825 | J31: 63 | K31: 1421 | L31: 44.40625 | M31: 78 | N31: 4.241791045 | O31: 335
A32: ORL klinika | B32: 40 | C32: 269 | D32: 18 | E32: 243 | F32: 19 | G32: 1 | H32: 24 | I32: 2095 | J32: 265 | K32: 1435 | L32: 35.875 | M32: 68 | N32: 5.218181818 | O32: 275
A33: Oční klinika | B33: 26 | C33: 136 | D33: 3 | E33: 125 | F33: 3 | G33: 0 | H33: 12 | I33: 1534 | J33: 0 | K33: 728 | L33: 28 | M33: 47 | N33: 5.432835821 | O33: 134
A34: Ortoptické oddělení | B34: 0 | C34: 0 | D34: 0 | E34: 0 | F34: 0 | G34: 0 | H34: 0 | I34: 0 | J34: 0 | K34: 0 | L34: 0 | M34: 0 | N34: 0 | O34: 0
A35: Ústní,čelist. a obl.chir. | B35: 20 | C35: 141 | D35: 6 | E35: 132 | F35: 9 | G35: 0 | H35: 12 | I35: 1180 | J35: 0 | K35: 690 | L35: 34.5 | M35: 58 | N35: 4.791666667 | O35: 144
A36: Kožní klinika | B36: 26 | C36: 134 | D36: 1 | E36: 117 | F36: 3 | G36: 0 | H36: 21 | I36: 1471 | J36: 63 | K36: 1251 | L36: 48.11538462 | M36: 85 | N36: 9.7734375 | O36: 128
A37: Onkologická klinika | B37: 64 | C37: 364 | D37: 7 | E37: 320 | F37: 7 | G37: 13 | H37: 46 | I37: 3665 | J37: 111 | K37: 2704 | L37: 42.25 | M37: 74 | N37: 7.595505618 | O37: 356
A38: Hemato-onkologická kl. | B38: 34 | C38: 141 | D38: 5 | E38: 115 | F38: 6 | G38: 5 | H38: 29 | I38: 2006 | J38: 0 | K38: 1695 | L38: 49.85294118 | M38: 84 | N38: 12.46323529 | O38: 136
A39: Rehabilitační oddělení | B39: 28 | C39: 57 | D39: 24 | E39: 56 | F39: 2 | G39: 0 | H39: 23 | I39: 1568 | J39: 84 | K39: 1331 | L39: 47.53571429 | M39: 85 | N39: 19.01428571 | O39: 70
A40: Kl.nukleární medicíny | B40: 10 | C40: 57 | D40: 0 | E40: 46 | F40: 3 | G40: 0 | H40: 7 | I40: 550 | J40: 40 | K40: 395 | L40: 39.5 | M40: 72 | N40: 7.452830189 | O40: 53
A41: FN celkem: | B41: 1393 | C41: 7900 | D41: 909 | E41: 7248 | F41: 909 | G41: 129 | H41: 977 | I41: 73669 | J41: 8518 | K41: 57656 | L41: 41.38980617 | M41: 78 | N41: 6.744969584 | O41: 7639

Sheet lůžkový fond měs.-16
A1: Fakultní nemocnice Olomouc | K1: Ú N O R 2 0 1 0
A2: LŮŽKOVÝ FOND A JEHO VYUŽITÍ VČETNĚ SVLS
O3: Počet dnů: | P3: 28
A4: Klinika |Poč.| Počet ošetřovanců |Prům|Skut. |Uzav.|Počet |Využ.lůžek |Prům.|Počet
A5: |lůž.|-----------------------------|den.|lůžko.|lůžka|ošetř. |-----------|ošetř|hosp.
A6: | |PŘIJ |exTR+|PROP |exTR-|Úmrtí|p.ho|kapac.| |dnů | dny | % |doba |
A7: ==============================================================================================
A8: 1.IK | 63| 257| 14| 239| 29| 3| 53| 1764| 0| 1492 | 23,7| 84,6| 5,5| 271
A9: 2.IK | 62| 197| 9| 175| 21| 6| 48| 1736| 0| 1350 | 21,8| 77,8| 6,6| 204
A10: 3.IK | 70| 175| 20| 164| 33| 8| 52| 1756| 204| 1452 | 20,7| 82,7| 7,3| 200
A11: GER | 90| 11| 63| 68| 4| 5| 53| 1540| 980| 1488 | 16,5| 96,6| 19,7| 76
A12: PLIC | 61| 168| 17| 166| 16| 6| 52| 1708| 0| 1465 | 24,0| 85,8| 7,9| 187
A13: NEUR | 72| 178| 4| 168| 22| 1| 61| 2016| 0| 1694 | 23,5| 84,0| 9,1| 187
A14: PSY | 90| 75| 4| 70| 1| 0| 49| 1624| 896| 1373 | 15,3| 84,5| 18,3| 75
A15: DK | 100| 487| 1| 485| 0| 0| 78| 2800| 0| 2182 | 21,8| 77,9| 4,5| 487
A16: PORGYN | 87| 319| 2| 319| 2| 1| 55| 2213| 223| 1534 | 17,6| 69,3| 4,8| 322
A17: NOVO | 50| 174| 0| 166| 1| 0| 45| 1400| 0| 1273 | 25,5| 90,9| 7,5| 171
A18: 1CHIR | 86| 184| 55| 189| 52| 2| 61| 2408| 0| 1714 | 19,9| 71,2| 7,1| 241
A19: 2CHIR | 33| 130| 9| 131| 9| 1| 31| 924| 0| 866 | 26,2| 93,7| 6,2| 140
A20: NCHIR | 44| 99| 16| 112| 7| 2| 25| 991| 241| 712 | 16,2| 71,8| 6,0| 118
A21: PCHIR | 18| 62| 4| 63| 4| 0| 11| 504| 0| 306 | 17,0| 60,7| 4,6| 67
A22: KCHIR | 41| 54| 13| 61| 5| 2| 28| 1015| 133| 779 | 19,0| 76,7| 11,5| 68
A23: TRAUM | 33| 160| 5| 148| 21| 1| 24| 924| 0| 670 | 20,3| 72,5| 4,0| 168
A24: KAR | 10| 24| 11| 8| 21| 12| 6| 240| 40| 173 | 17,3| 72,1| 4,6| 38
A25: ORT | 72| 211| 4| 198| 16| 0| 40| 1400| 616| 1119 | 15,5| 79,9| 5,2| 215
A26: URO | 32| 116| 46| 107| 48| 0| 24| 896| 0| 664 | 20,8| 74,1| 4,2| 159
A27: ORL | 40| 133| 14| 130| 11| 1| 28| 1036| 84| 772 | 19,3| 74,5| 5,3| 145
A28: OCNI | 26| 65| 2| 69| 2| 0| 13| 728| 0| 376 | 14,5| 51,6| 5,4| 69
A29: KOZNI | 26| 64| 0| 61| 1| 0| 22| 728| 0| 614 | 23,6| 84,3| 9,7| 63
A30: ONK | 64| 166| 5| 158| 4| 10| 52| 1792| 0| 1448 | 22,6| 80,8| 8,4| 172
A31: HOK | 34| 56| 3| 54| 1| 1| 32| 952| 0| 887 | 26,1| 93,2| 15,4| 58
A32: REH | 28| 23| 14| 35| 1| 0| 26| 784| 0| 732 | 26,1| 93,4| 20,1| 37
A33: KNM | 10| 29| 0| 27| 0| 0| 7| 280| 0| 193 | 19,3| 68,9| 6,9| 28
A34: PRAC | 18| 46| 0| 50| 0| 0| 14| 504| 0| 402 | 22,3| 79,8| 8,4| 48
A35: IPCHO | 13| 5| 101| 0| 103| 3| 10| 364| 0| 280 | 21,5| 76,9| 2,6| 106
A36: UCOCH | 20| 72| 2| 69| 3| 0| 12| 560| 0| 347 | 17,4| 62,0| 4,8| 73
A37: ==============================================================================================
A38: Celkem |1393| 3740| 438| 3690| 438| 65|1013| 35587| 3417| 28357 | 20,4| 79,7| 7,6| 3748

Sheet lůžkový fond načít.-17
A1: Fakultní nemocnice Olomouc | H1: L E D E N - Ú N O R 2 0 1 0
A2: LŮŽKOVÝ FOND A JEHO VYUŽITÍ VČETNĚ SVLS
A3: Počet dnů: 59
A4: Klinika |Prům| Počet ošetřovanců |Prům|Skut. |Uzav.|Počet |Využ.lůžek |Prům.|Počet
A5: |poč.|-----------------------------|den.|lůžko.|lůžka|ošetř. |-----------|ošetř|hosp.
A6: |lůž.|PŘIJ |exTR+|PROP |exTR-|Úmrtí|p.ho|kapac.| |dnů | dny | % |doba |
A7: ==============================================================================================
A8: 1.IK | 63| 560| 24| 490| 63| 4| 54| 3633| 84| 3179 | 50,5| 87,5| 5,6| 571
A9: 2.IK | 62| 379| 18| 334| 43| 12| 48| 3658| 0| 2848 | 45,9| 77,9| 7,2| 393
A10: 3.IK | 70| 383| 36| 330| 63| 13| 50| 3644| 486| 2943 | 42,0| 80,8| 7,1| 413
A11: GER | 90| 20| 139| 113| 6| 10| 50| 3137| 2173| 2963 | 32,9| 94,5| 20,6| 144
A12: PLIC | 61| 371| 34| 331| 31| 13| 49| 3503| 96| 2874 | 47,1| 82,0| 7,4| 390
A13: NEUR | 72| 378| 11| 322| 49| 3| 59| 4158| 90| 3474 | 48,3| 83,5| 9,1| 382
A14: PSY | 90| 148| 7| 126| 1| 0| 48| 3356| 1954| 2824 | 31,4| 84,1| 20,0| 141
A15: DK | 100| 963| 1| 932| 0| 1| 74| 5900| 0| 4346 | 43,5| 73,7| 4,6| 949
A16: PORGYN | 87| 668| 6| 648| 5| 1| 56| 4517| 616| 3299 | 37,9| 73,0| 5,0| 664
A17: NOVO | 50| 387| 0| 391| 1| 0| 47| 2950| 0| 2765 | 55,3| 93,7| 7,1| 390
A18: 1CHIR | 86| 412| 119| 366| 111| 7| 60| 4696| 378| 3568 | 41,5| 76,0| 7,0| 508
A19: 2CHIR | 33| 264| 12| 233| 16| 1| 28| 1947| 0| 1650 | 50,0| 84,7| 6,3| 263
A20: NCHIR | 44| 237| 25| 232| 14| 5| 28| 2319| 277| 1678 | 38,1| 72,4| 6,5| 257
A21: PCHIR | 18| 137| 8| 129| 6| 0| 11| 1008| 54| 631 | 35,1| 62,6| 4,5| 140
A22: KCHIR | 41| 104| 34| 104| 12| 2| 25| 2229| 190| 1477 | 36,0| 66,3| 11,5| 128
A23: TRAUM | 33| 355| 10| 306| 45| 1| 23| 1947| 0| 1362 | 41,3| 70,0| 3,8| 359
A24: KAR | 10| 40| 36| 13| 40| 31| 7| 550| 40| 431 | 43,1| 78,4| 5,4| 80
A25: ORT | 72| 438| 13| 385| 33| 0| 39| 2863| 1385| 2295 | 31,9| 80,2| 5,3| 435
A26: URO | 32| 249| 98| 221| 100| 1| 24| 1825| 63| 1421 | 44,4| 77,9| 4,2| 335
A27: ORL | 40| 269| 18| 243| 19| 1| 24| 2095| 265| 1435 | 35,9| 68,5| 5,2| 275
A28: OCNI | 26| 136| 3| 125| 3| 0| 12| 1534| 0| 728 | 28,0| 47,5| 5,5| 134
A29: KOZNI | 26| 134| 1| 117| 3| 0| 21| 1471| 63| 1251 | 48,1| 85,0| 9,8| 128
A30: ONK | 64| 364| 7| 320| 7| 13| 46| 3665| 111| 2704 | 42,3| 73,8| 7,6| 356
A31: HOK | 34| 141| 5| 115| 6| 5| 29| 2006| 0| 1695 | 49,9| 84,5| 12,5| 136
A32: REH | 28| 57| 24| 56| 2| 0| 23| 1568| 84| 1331 | 47,5| 84,9| 19,2| 70
A33: KNM | 10| 57| 0| 46| 3| 0| 7| 550| 40| 395 | 39,5| 71,8| 7,5| 53
A34: PRAC | 18| 97| 0| 87| 1| 0| 14| 1008| 54| 800 | 44,4| 79,4| 8,6| 93
A35: IPCHO | 13| 11| 214| 1| 217| 5| 10| 752| 15| 599 | 46,1| 79,7| 2,7| 224
A36: UCOCH | 20| 141| 6| 132| 9| 0| 12| 1180| 0| 690 | 34,5| 58,5| 4,8| 144
A37: ==============================================================================================
A38: Celkem |1393| 7900| 909| 7248| 909| 129| 977| 73669| 8518| 57656 | 41,4| 78,3| 7,5| 7639

Sheet DA18-lůžkový fond-17 (hidden)
B1: DA19 - L Ů Ž K O V Ý F O N D a jeho využití včetně SVLS
B3: =mesic_rok -> 2010-02-28
M7: Počet dnů: | O7: =dat_do - CONCATENATE("1/",(MONTH(dat_do)),"/",(YEAR(dat_do))) +1 -> 28
A9: Klinika | B9: Prům. | D9: Počet ošetřovanců | H9: Prům. | I9: Skut. | J9: Uzav. | K9: Počet | L9: Využ.lůžek | N9: Prům. | O9: Počet
B10: Poč. | C10: PŘIJ. | D10: TR + | E10: PROP. | F10: TR - | G10: ÚMRTÍ | H10: denní | I10: lůžko. | J10: lůžka | K10: ošetř. | L10: dny | M10: (%) | N10: ošetř. | O10: hosp.
B11: lůž. | H11: p.hos | I11: kapac. | K11: dnů | N11: doba
A12: I.interní klinika | B12: 63 | C12: 257 | D12: 14 | E12: 239 | F12: 29 | G12: 3 | H12: 53 | I12: 1764 | J12: 0 | K12: 1492 | L12: 23.68253968 | M12: 85 | N12: 5.505535055 | O12: 271
A13: II.interní klinika | B13: 62 | C13: 197 | D13: 9 | E13: 175 | F13: 21 | G13: 6 | H13: 48 | I13: 1736 | J13: 0 | K13: 1350 | L13: 21.77419355 | M13: 78 | N13: 6.617647059 | O13: 204
A14: III.interní klinika | B14: 70 | C14: 175 | D14: 20 | E14: 164 | F14: 33 | G14: 8 | H14: 52 | I14: 1756 | J14: 204 | K14: 1452 | L14: 20.74285714 | M14: 83 | N14: 7.26 | O14: 200
A15: Geriatrické oddělení | B15: 90 | C15: 11 | D15: 63 | E15: 68 | F15: 4 | G15: 5 | H15: 53 | I15: 1540 | J15: 980 | K15: 1488 | L15: 16.53333333 | M15: 97 | N15: 19.57894737 | O15: 76
A16: Alergologické oddělení | B16: 0 | C16: 0 | D16: 0 | E16: 0 | F16: 0 | G16: 0 | H16: 0 | I16: 0 | J16: 0 | K16: 0 | L16: 0 | M16: 0 | N16: 0 | O16: 0
A17: Klinika TRN | B17: 61 | C17: 168 | D17: 17 | E17: 166 | F17: 16 | G17: 6 | H17: 52 | I17: 1708 | J17: 0 | K17: 1465 | L17: 24.01639344 | M17: 86 | N17: 7.834224599 | O17: 187
A18: Neurologická klinika | B18: 72 | C18: 178 | D18: 4 | E18: 168 | F18: 22 | G18: 1 | H18: 61 | I18: 2016 | J18: 0 | K18: 1694 | L18: 23.52777778 | M18: 84 | N18: 9.058823529 | O18: 187
A19: Psychiatrická klinika | B19: 90 | C19: 75 | D19: 4 | E19: 70 | F19: 1 | G19: 0 | H19: 49 | I19: 1624 | J19: 896 | K19: 1373 | L19: 15.25555556 | M19: 85 | N19: 18.30666667 | O19: 75
A20: Klinika nemoci z povolání | B20: 18 | C20: 46 | D20: 0 | E20: 50 | F20: 0 | G20: 0 | H20: 14 | I20: 504 | J20: 0 | K20: 402 | L20: 22.33333333 | M20: 80 | N20: 8.375 | O20: 48
A21: Dětská klinika | B21: 100 | C21: 487 | D21: 1 | E21: 485 | F21: 0 | G21: 0 | H21: 78 | I21: 2800 | J21: 0 | K21: 2182 | L21: 21.82 | M21: 78 | N21: 4.480492813 | O21: 487
A22: Por. - gyn. Klinika | B22: 87 | C22: 319 | D22: 2 | E22: 319 | F22: 2 | G22: 1 | H22: 55 | I22: 2213 | J22: 223 | K22: 1534 | L22: 17.63218391 | M22: 69 | N22: 4.763975155 | O22: 322
A23: Novorozenecké oddělení | B23: 50 | C23: 174 | D23: 0 | E23: 166 | F23: 1 | G23: 0 | H23: 45 | I23: 1400 | J23: 0 | K23: 1273 | L23: 25.46 | M23: 91 | N23: 7.444444444 | O23: 171
A24: I.chirurgická klinika | B24: 86 | C24: 184 | D24: 55 | E24: 189 | F24: 52 | G24: 2 | H24: 61 | I24: 2408 | J24: 0 | K24: 1714 | L24: 19.93023256 | M24: 71 | N24: 7.112033195 | O24: 241
A25: II.chirurgická klinika | B25: 33 | C25: 130 | D25: 9 | E25: 131 | F25: 9 | G25: 1 | H25: 31 | I25: 924 | J25: 0 | K25: 866 | L25: 26.24242424 | M25: 94 | N25: 6.185714286 | O25: 140
A26: Neurochirurgická klinika | B26: 44 | C26: 99 | D26: 16 | E26: 112 | F26: 7 | G26: 2 | H26: 25 | I26: 991 | J26: 241 | K26: 712 | L26: 16.18181818 | M26: 72 | N26: 6.033898305 | O26: 118
A27: Plastická a est.chirurgie | B27: 18 | C27: 62 | D27: 4 | E27: 63 | F27: 4 | G27: 0 | H27: 11 | I27: 504 | J27: 0 | K27: 306 | L27: 17 | M27: 61 | N27: 4.567164179 | O27: 67
A28: Traumatologické oddělení | B28: 33 | C28: 160 | D28: 5 | E28: 148 | F28: 21 | G28: 1 | H28: 24 | I28: 924 | J28: 0 | K28: 670 | L28: 20.3030303 | M28: 73 | N28: 3.988095238 | O28: 168
A29: Kl.anestez.-resuscitační | B29: 10 | C29: 24 | D29: 11 | E29: 8 | F29: 21 | G29: 12 | H29: 6 | I29: 240 | J29: 40 | K29: 173 | L29: 17.3 | M29: 72 | N29: 4.552631579 | O29: 38
A30: Ortopedické oddělení | B30: 72 | C30: 211 | D30: 4 | E30: 198 | F30: 16 | G30: 0 | H30: 40 | I30: 1400 | J30: 616 | K30: 1119 | L30: 15.54166667 | M30: 80 | N30: 5.204651163 | O30: 215
A31: Urologická klinika | B31: 32 | C31: 116 | D31: 46 | E31: 107 | F31: 48 | G31: 0 | H31: 24 | I31: 896 | J31: 0 | K31: 664 | L31: 20.75 | M31: 74 | N31: 4.176100629 | O31: 159
A32: ORL klinika | B32: 40 | C32: 133 | D32: 14 | E32: 130 | F32: 11 | G32: 1 | H32: 28 | I32: 1036 | J32: 84 | K32: 772 | L32: 19.3 | M32: 75 | N32: 5.324137931 | O32: 145
A33: Oční klinika | B33: 26 | C33: 65 | D33: 2 | E33: 69 | F33: 2 | G33: 0 | H33: 13 | I33: 728 | J33: 0 | K33: 376 | L33: 14.46153846 | M33: 52 | N33: 5.449275362 | O33: 69
A34: Ortoptické oddělení | B34: 0 | C34: 0 | D34: 0 | E34: 0 | F34: 0 | G34: 0 | H34: 0 | I34: 0 | J34: 0 | K34: 0 | L34: 0 | M34: 0 | N34: 0 | O34: 0
A35: Ústní,čelist. a obl.chir. | B35: 20 | C35: 72 | D35: 2 | E35: 69 | F35: 3 | G35: 0 | H35: 12 | I35: 560 | J35: 0 | K35: 347 | L35: 17.35 | M35: 62 | N35: 4.753424658 | O35: 73
A36: Kožní klinika | B36: 26 | C36: 64 | D36: 0 | E36: 61 | F36: 1 | G36: 0 | H36: 22 | I36: 728 | J36: 0 | K36: 614 | L36: 23.61538462 | M36: 84 | N36: 9.746031746 | O36: 63
A37: Onkologická klinika | B37: 64 | C37: 166 | D37: 5 | E37: 158 | F37: 4 | G37: 10 | H37: 52 | I37: 1792 | J37: 0 | K37: 1448 | L37: 22.625 | M37: 81 | N37: 8.418604651 | O37: 172
A38: Hemato-onkologická kl. | B38: 34 | C38: 56 | D38: 3 | E38: 54 | F38: 1 | G38: 1 | H38: 32 | I38: 952 | J38: 0 | K38: 887 | L38: 26.08823529 | M38: 93 | N38: 15.29310345 | O38: 58
A39: Rehabilitační oddělení | B39: 28 | C39: 23 | D39: 14 | E39: 35 | F39: 1 | G39: 0 | H39: 26 | I39: 784 | J39: 0 | K39: 732 | L39: 26.14285714 | M39: 93 | N39: 19.78378378 | O39: 37
A40: Kl.nukleární medicíny | B40: 10 | C40: 29 | D40: 0 | E40: 27 | F40: 0 | G40: 0 | H40: 7 | I40: 280 | J40: 0 | K40: 193 | L40: 19.3 | M40: 69 | N40: 6.892857143 | O40: 28
A41: FN celkem: | B41: 1393 | C41: 3740 | D41: 438 | E41: 3690 | F41: 438 | G41: 65 | H41: 1013 | I41: 35587 | J41: 3417 | K41: 28357 | L41: 20.35678392 | M41: 80 | N41: 6.774247492 | O41: 3748

Sheet Rozbor investic-FRIM-18
A1: Rozbor investic - FRM k | C1: =dat_do -> 2010-02-28
A4: Plán odpisů roku | B4: =dat_rok -> 2010 | C4: 272360000
A5: Alikvotní část odpisů | C5: 45393333.32
A6: Skutečně zúčtované odpisy | C6: 45134922
A7: Limit vlastních zdrojů pro nákup inv.2009 | C7: 311314761
A10: F R M - čerpání | D10: v Kč
A14: DRUH INVESTICE | B14: ČERPÁNÍ CELKEM | C14: TVORBA-VLAST.+CIZÍ ZDR. | D14: NEDOČERPÁNO
A15: vlastní zdroje | C15: =C7 -> 311314761 | D15: =C15-(B16+B17+B18+B19+B20) -> 300685273.5
A16: stavby | B16: 1253136.7
A17: projekty | B17: 0
A18: Přístrojová technika | B18: 0
A19: technické zhodnocení | B19: 3139717.3
A20: oprava a udržování | B20: 6236633.51
A21: DARY | C21: 0 | D21: =C21-(B22+B23+B24) -> 0
A22: stavby | B22: 0
A23: projekty | B23: 0
A24: Přístrojová technika | B24: 0
A25: OSTATNÍ DOTACE | C25: 0 | D25: =C25-(B26+B27+B28) -> 0
A26: stavby | B26: 0
A27: projekty | B27: 0
A28: Přístrojová technika | B28: 0
A29: SYSTÉM.DOTACE 916 | C29: 0 | D29: =C29-(B30+B31+B32+B33) -> 0
A30: stavby | B30: 0
A31: projekty | B31: 0
A32: Přístrojová technika | B32: 0
A33: Přístrojová technika - granty | B33: 0
A34: ÚČEL.DOTACE 908 | C34: 0 | D34: =C34-(B35+B36+B37) -> 0
A35: stavby | B35: 0
A36: projekty | B36: 0
A37: Přístrojová technika | B37: 0
A38: C E L K E M | B38: =SUM(B15:B37) -> 10629487.51 | C38: =SUM(C15:C37) -> 311314761 | D38: =SUM(D15:D37) -> 300685273.5
A40: Z toho:
A41: čerpání z odpisů | B41: =SUM(B16:B20) -> 10629487.51 | C41: =SUM(C15) -> 311314761 | D41: =SUM(D15) -> 300685273.5
A42: čerpání z dotací | B42: =SUM(B22:B37) -> 0 | C42: =SUM(C21:C37) -> 0 | D42: =SUM(D21:D37) -> 0

Sheet Celková finanční situace-19
A1: Celková finanční situace:
A3: Rozbor platební neschopnosti FN k | C3: =dat_do -> 2010-02-28
A6: Zůstatek na BÚ (bez FKSP) | C6: 185904 | D6: tis. Kč
A9: Potřeba finančních prostředků na mzdy za měsíc | D9: =mesic_rok -> 2010-02-28
A10: celkem | C10: 130291 | D10: tis. Kč
A13: 1. Stav závazků vůči dodavatelům k | C13: =dat_do -> 2010-02-28
A15: Závazky | B15: LS | C15: FN | D15: Celkem
A16: do splatnosti | B16: 370601022.5 | C16: 183717163.2 | D16: =SUM(B16:C16) -> 554318185.6
A17: po splat. do 30 dnů | B17: 47696.64 | C17: 27551035.97 | D17: 27598732.61
A18: 31 - 90 dnů | B18: -6238111 | C18: 6603802.74 | D18: 365691.74
A19: 91 - 180 dnů | B19: 0 | C19: 80612.8 | D19: 80612.8
A20: 181 - 360 dnů | B20: 0 | C20: 98373.2 | D20: 98373.2
A21: nad 360 dnů | B21: 0 | C21: 358941.66 | D21: 358941.66
A22: C e l k e m | B22: =SUM(B16:B21) -> 364410608.1 | C22: =SUM(C16:C21) -> 218409929.6 | D22: =SUM(D16:D21) -> 582820537.7
A27: Pohledávky
A29: FN - pouze ve vztahu k odběratel. (úč. 311+324+970) | D29: 473822 | E29: tis. Kč
A30: LS - pouze ve vztahu k odběratelům | D30: 25863.14601 | E30: tis. Kč
A31: Celkem | D31: =SUM(D29:D30) -> 499685.146 | E31: tis. Kč
B33: z toho po lhůtě splatnosti celkem | D33: 23518 | E33: tis. Kč
A36: Závazky
A38: FN - pouze ve vztahu k dodavatel. (úč.321+314+970) | D38: 218410 | E38: tis. Kč
A39: LS - pouze ve vztahu k dodavatelům | D39: 364411 | E39: tis. Kč
A40: Celkem | D40: =SUM(D38:D39) -> 582821 | E40: tis. Kč
B42: z toho po lhůtě splatnosti celkem | D42: 28503 | E42: tis. Kč

Sheet Nezaplacené pohledávky FN Ol-20
B1: Nezaplacené pohledávky FN Olomouc
B2: k 28.2.2010
A5: Kód | B5: Název zdravotní pojišťovny (ZP) | C5: do splatnosti | D5: po splatnosti | E5: Celkem
A6: 111 | B6: Všeobecná zdrav.pojišťovna ČR | C6: =293618970.46+12111358.38 -> 305730328.8 | D6: =3023977.86+3677.52 -> 3027655.38 | E6: =C6+D6 -> 308757984.2
A7: 201 | B7: Vojenská zdrav.pojišťovna ČR | C7: =27835394.02+1688294.64 -> 29523688.66 | D7: 0 | E7: 29523688.66
A8: 205 | B8: Česká průmyslová ZP | C8: =38886143.85+1648098.55 -> 40534242.4 | D8: =2030865.48+15376.67+5.02 -> 2046247.17 | E8: 42580489.57
A9: 207 | B9: Oborová zdr.poj.zam.bank a p. | C9: =8688498.4+1057502.22 -> 9746000.62 | D9: 18973.15 | E9: 9764973.77
A10: 209 | B10: Zaměstnanecká poj.ŠKODA | C10: =21697.18+1539.97 -> 23237.15 | D10: 0 | E10: 23237.15
A11: 211 | B11: Zdr.poj.ministerstva vnitra CR | C11: =556443.95+3169246.16 -> 3725690.11 | D11: 3.91 | E11: 3725694.02
A12: 213 | B12: Revirní bratrská pokladna | C12: =8443599.49+1322403.89 -> 9766003.38 | D12: 0 | E12: 9766003.38
A13: 217 | B13: Zdrav.poj. METAL-ALIANCE | C13: =64820660.93+3174855.39 -> 67995516.32 | D13: =36000+38530 -> 74530 | E13: 68070046.32
A14: 222 | B14: Česká národní zdravotní pojiš. | C14: 0 | D14: 0 | E14: =C14+D14 -> 0
A15: 227 | B15: Pojišťovna AGEL | C15: 0 | D15: 0 | E15: 0
A16: 228 | B16: ZP Media | C16: =1656689.07+217261.83 -> 1873950.9 | D16: =301578.32+94958.67 -> 396536.99 | E16: 2270487.89
E17: 0
E18: 0
B19: Pohledávky celkem (aktivní ZP) | C19: =SUM(C6:C18) -> 468918658.4 | D19: =SUM(D6:D18) -> 5563946.6 | E19: =SUM(E6:E18) -> 474482605
A20: 202 | B20: Hornická zaměstnanecká poj. | C20: 0 | D20: 0 | E20: 0
A21: 204 | B21: Zdrav.poj. GARANT-HOSPITAL | C21: 0 | D21: 0 | E21: 0
A22: 206 | B22: Moravská zdravotní pojišťovna | C22: 0 | D22: 0 | E22: 0
A23: 208 | B23: Zdravotní pojišťovna ATLAS | C23: 0 | D23: 0 | E23: 0
A24: 210 | B24: Zdrav.poj. škodováků | C24: 0 | D24: 0 | E24: 0
A25: 214 | B25: Regionální zdrav.poj.REZAPO | C25: 0 | D25: 0 | E25: 0
A26: 215 | B26: Moravskoslezská poj. IMPULS | C26: 0 | D26: 0 | E26: 0
A27: 216 | B27: Zdravotní pojišťovna SALVUS | C27: 0 | D27: 0 | E27: 0
A28: 218 | B28: Zdrav.poj. CRYSTAL | C28: 0 | D28: 0 | E28: 0
A29: 219 | B29: Prostějovská zdravotní poj. | C29: 0 | D29: 0 | E29: 0
A30: 221 | B30: Mendlova zdravotní poj. | C30: 0 | D30: 0 | E30: 0
A31: 223 | B31: Zem.-potrav. zdrav.poj. ZEPO | C31: 0 | D31: 0 | E31: 0
A32: 224 | B32: Zaměstnanecká zdrav.poj. RADIX | C32: 0 | D32: 0 | E32: 0
A33: 225 | B33: Zdravotní pojišťovna SPORT | C33: 0 | D33: 0 | E33: 0
E34: 0
E35: 0
B36: Pohledávky celkem (zaniklé ZP) | C36: =SUM(C20:C35) -> 0 | D36: =SUM(D20:D35) -> 0 | E36: =SUM(E20:E35) -> 0
B37: Slovenské ZP | C37: 0 | D37: 17658.9 | E37: 17658.9
B38: Pohledávky celkem | C38: =C19+C36+C37 -> 468918658.4 | D38: =D19+D36+D37 -> 5581605.5 | E38: =E19+E36+E37 -> 474500263.9

Sheet Pohledávky po zdr. pojišťov.-21
C1: Pohledávky po zdrav. pojišťovnách
D2: k | E2: =dat_do -> 2010-02-28
D46: ZP celkem | E46: VZP | F46: Ostat. ZP
C47: pohl.celkem | D47: =SUM(E47:F47) -> 474500.2639 | E47: 308757.9842 | F47: 165742.2797
C48: pohl.po spl. | D48: =SUM(E48:F48) -> 5581.6055 | E48: 3027.65538 | F48: 2553.95012

Sheet Nezaplacené pohledávky-22 (hidden)
C1: Nezaplacené pohledávky k | H1: =dat_do -> 2010-02-28
A36: Zdrav.poj. | B36: VZP | C36: 201 | D36: 205 | E36: 207 | F36: 210 | G36: 211 | H36: 213 | I36: 215 | J36: 217 | K36: 219 | L36: 222 | M36: 225
A37: pohl.celk. | B37: 308757.9842 | C37: 29523.68866 | D37: 42564.27407 | E37: 9764.97377 | F37: 0 | G37: 3725.69402 | H37: 9766.00338 | I37: 0 | J37: 68070.04632 | K37: 0 | L37: 0.00502 | M37: 0
A38: pohl.po spl. | B38: 3027.65538 | C38: 0 | D38: 2044.76067 | E38: 18.97315 | F38: 0 | G38: 0.00391 | H38: 0 | I38: 0 | J38: 74.53 | K38: 0 | L38: 0.00502 | M38: 0

Sheet Hospodaření,fin.sit.,solvent-23
C1: Hospodaření, finanční situace a solventnost
D2: FN Olomouc v roce | F2: =dat_rok -> 2010
D35: HV | E35: Pohledávky | F35: Závazky | G35: Solventnost
C36: 1 | D36: -21.35703585 | E36: 487.5252886 | F36: 584.1 | G36: =SUM(E36-F36) -> -96.57471144
C37: 1-2 | D37: -35.30757039 | E37: 499.6506803 | F37: 582.8 | G37: =SUM(E37-F37) -> -83.14931974
C38: 1-3
C39: 1-4
C40: 1-5
C41: 1-6
C42: 1-7
C43: 1-8
C44: 1-9
C45: 1-10
C46: 1-11
C47: 1-12

Sheet Nezap. pohled. FNOl - souhrn-24 (hidden)
A1: Nezaplacené pohledávky FN Olomouc
A2: =CONCATENATE("k ",DAY(dat_do),".",MONTH(dat_do),".",YEAR(dat_do)) -> k 28.2.2010
A5: Kód | B5: Název zdravotní pojišťovny (ZP) | C5: do splatnosti | D5: po splatnosti | E5: Celkem
A6: ='Nezaplacené pohledávky FN Ol-20'!A6 -> 111 | B6: ='Nezaplacené pohledávky FN Ol-20'!B6 -> Všeobecná zdrav.pojišťovna ČR | C6: ='Nezaplacené pohledávky FN Ol-20'!C6 -> 305730328.8 | D6: ='Nezaplacené pohledávky FN Ol-20'!D6 -> 3027655.38 | E6: =C6+D6 -> 308757984.2
A7: ='Nezaplacené pohledávky FN Ol-20'!A7 -> 201 | B7: ='Nezaplacené pohledávky FN Ol-20'!B7 -> Vojenská zdrav.pojišťovna ČR | C7: ='Nezaplacené pohledávky FN Ol-20'!C7 -> 29523688.66 | D7: ='Nezaplacené pohledávky FN Ol-20'!D7 -> 0 | E7: 29523688.66
A8: ='Nezaplacené pohledávky FN Ol-20'!#REF! ->  | B8: ='Nezaplacené pohledávky FN Ol-20'!#REF! ->  | C8: ='Nezaplacené pohledávky FN Ol-20'!#REF! ->  | D8: ='Nezaplacené pohledávky FN Ol-20'!#REF! -> 
A9: ='Nezaplacené pohledávky FN Ol-20'!A8 -> 205 | B9: ='Nezaplacené pohledávky FN Ol-20'!B8 -> Česká průmyslová ZP | C9: ='Nezaplacené pohledávky FN Ol-20'!C8 -> 40534242.4 | D9: ='Nezaplacené pohledávky FN Ol-20'!D8 -> 2046247.17 | E9: 42580489.57
A10: ='Nezaplacené pohledávky FN Ol-20'!A9 -> 207 | B10: ='Nezaplacené pohledávky FN Ol-20'!B9 -> Oborová zdr.poj.zam.bank a p. | C10: ='Nezaplacené pohledávky FN Ol-20'!C9 -> 9746000.62 | D10: ='Nezaplacené pohledávky FN Ol-20'!D9 -> 18973.15 | E10: 9764973.77
A11: ='Nezaplacené pohledávky FN Ol-20'!A10 -> 209 | B11: ='Nezaplacené pohledávky FN Ol-20'!B10 -> Zaměstnanecká poj.ŠKODA | C11: ='Nezaplacené pohledávky FN Ol-20'!C10 -> 23237.15 | D11: ='Nezaplacené pohledávky FN Ol-20'!D10 -> 0 | E11: 23237.15
A12: ='Nezaplacené pohledávky FN Ol-20'!A11 -> 211 | B12: ='Nezaplacené pohledávky FN Ol-20'!B11 -> Zdr.poj.ministerstva vnitra CR | C12: ='Nezaplacené pohledávky FN Ol-20'!C11 -> 3725690.11 | D12: ='Nezaplacené pohledávky FN Ol-20'!D11 -> 3.91 | E12: 3725694.02
A13: ='Nezaplacené pohledávky FN Ol-20'!A12 -> 213 | B13: ='Nezaplacené pohledávky FN Ol-20'!B12 -> Revirní bratrská pokladna | C13: ='Nezaplacené pohledávky FN Ol-20'!C12 -> 9766003.38 | D13: ='Nezaplacené pohledávky FN Ol-20'!D12 -> 0 | E13: 9766003.38
A14: ='Nezaplacené pohledávky FN Ol-20'!A14 -> 222 | B14: ='Nezaplacené pohledávky FN Ol-20'!B14 -> Česká národní zdravotní pojiš. | C14: ='Nezaplacené pohledávky FN Ol-20'!C14 -> 0 | D14: ='Nezaplacené pohledávky FN Ol-20'!D14 -> 0 | E14: 0
A15: ='Nezaplacené pohledávky FN Ol-20'!A15 -> 227 | B15: ='Nezaplacené pohledávky FN Ol-20'!B15 -> Pojišťovna AGEL | C15: ='Nezaplacené pohledávky FN Ol-20'!C15 -> 0 | D15: ='Nezaplacené pohledávky FN Ol-20'!D15 -> 0 | E15: 0
A16: ='Nezaplacené pohledávky FN Ol-20'!A16 -> 228 | B16: ='Nezaplacené pohledávky FN Ol-20'!B16 -> ZP Media | C16: ='Nezaplacené pohledávky FN Ol-20'!C16 -> 1873950.9 | D16: ='Nezaplacené pohledávky FN Ol-20'!D16 -> 396536.99 | E16: 2270487.89
A17: ='Nezaplacené pohledávky FN Ol-20'!A17 -> 0 | B17: ='Nezaplacené pohledávky FN Ol-20'!B17 -> 0 | C17: ='Nezaplacené pohledávky FN Ol-20'!C17 -> 0 | D17: ='Nezaplacené pohledávky FN Ol-20'!D17 -> 0 | E17: 0
B18: Pohledávky celkem (aktivní ZP) | C18: =SUM(C6:C17) ->  | D18: =SUM(D6:D17) ->  | E18: =SUM(E6:E17) -> 
B19: Pohledávky celkem (zaniklé ZP) | C19: ='Nezaplacené pohledávky FN Ol-20'!C35 -> 0 | D19: ='Nezaplacené pohledávky FN Ol-20'!D35 -> 0 | E19: ='Nezaplacené pohledávky FN Ol-20'!E35 -> 0
B20: Slovenské ZP | C20: =Slovenske_ZP_dospl -> 0 | D20: =Slovenske_ZP_pospl -> 0 | E20: =C20+D20 -> 0
B21: Pohledávky celkem | C21: =C18+C19+C20 ->  | D21: =D18+D19+D20 ->  | E21: =E18+E19+E20 -> 

Sheet Vývojová řada nákladů-25
E1: Vývojová řada nákladů
F2: =CONCATENATE("v letech ",YEAR(dat_do)-2," - ",YEAR(dat_do)) -> v letech 2008 - 2010
B38: =CONCATENATE("Ø ",YEAR(dat_do)-2) -> Ø 2008 | C38: =CONCATENATE("Ø ",YEAR(dat_do)-1) -> Ø 2009 | D38: =CONCATENATE("I.",RIGHT(YEAR(dat_do),2)) -> I.10 | E38: =CONCATENATE("II.",RIGHT(YEAR(dat_do),2)) -> II.10 | F38: =CONCATENATE("III.",RIGHT(YEAR(dat_do),2)) -> III.10 | G38: =CONCATENATE("IV.",RIGHT(YEAR(dat_do),2)) -> IV.10 | H38: =CONCATENATE("V.",RIGHT(YEAR(dat_do),2)) -> V.10 | I38: =CONCATENATE("VI.",RIGHT(YEAR(dat_do),2)) -> VI.10 | J38: =CONCATENATE("VII.",RIGHT(YEAR(dat_do),2)) -> VII.10 | K38: =CONCATENATE("VIII.",RIGHT(YEAR(dat_do),2)) -> VIII.10 | L38: =CONCATENATE("IX.",RIGHT(YEAR(dat_do),2)) -> IX.10 | M38: =CONCATENATE("X.",RIGHT(YEAR(dat_do),2)) -> X.10 | N38: =CONCATENATE("XI.",RIGHT(YEAR(dat_do),2)) -> XI.10 | O38: =CONCATENATE("XII.",RIGHT(YEAR(dat_do),2)) -> XII.10
A39: Léky | B39: 58886.60938 | C39: 68993.11458 | D39: 78495.00614 | E39: 71186.8907
A40: z toho: VLV | B40: 25811.33809 | C40: 5945.025664 | D40: 5053.27684 | E40: 5424.59416
A41: centra | B41: 7881.186365 | C41: 37807.69 | D41: 47050.6356 | E41: 41008.53107
A42: Krev | B42: 3422.303363 | C42: 4286.630586 | D42: 4347.04708 | E42: 3630.0563
A43: SZM | B43: 48845.25605 | C43: 57669.05343 | D43: 63572.34346 | E43: 77825.44716
A44: Prodej LS | B44: 25951.58575 | C44: 26661.97647 | D44: 22922.72037 | E44: 21967.74285
A45: Os. náklady | B45: 115119.0559 | C45: 125951.292 | D45: 132480.9112 | E45: 130641.267
A46: Odpisy | B46: 9957.451378 | C46: 22151.82858 | D46: 22316.279 | E46: 23035.569
A47: Př. náklady | B47: 296000.5857 | C47: 352482.2484 | D47: 368454.9864 | E47: 371761.2798
A49: *VLV = vliv lékové vyhlášky

Sheet Vývojová řada výnosů -26
E1: Vývojová řada výnosů
F2: =CONCATENATE("v letech ",YEAR(dat_do)-2," - ",YEAR(dat_do)) -> v letech 2008 - 2010
B30: =CONCATENATE("Ø ",YEAR(dat_do)-2) -> Ø 2008 | C30: =CONCATENATE("Ø ",YEAR(dat_do)-1) -> Ø 2009 | D30: =CONCATENATE("I.",RIGHT(YEAR(dat_do),2)) -> I.10 | E30: =CONCATENATE("II.",RIGHT(YEAR(dat_do),2)) -> II.10 | F30: =CONCATENATE("III.",RIGHT(YEAR(dat_do),2)) -> III.10 | G30: =CONCATENATE("IV.",RIGHT(YEAR(dat_do),2)) -> IV.10 | H30: =CONCATENATE("V.",RIGHT(YEAR(dat_do),2)) -> V.10 | I30: =CONCATENATE("VI.",RIGHT(YEAR(dat_do),2)) -> VI.10 | J30: =CONCATENATE("VII.",RIGHT(YEAR(dat_do),2)) -> VII.10 | K30: =CONCATENATE("VIII.",RIGHT(YEAR(dat_do),2)) -> VIII.10 | L30: =CONCATENATE("IX.",RIGHT(YEAR(dat_do),2)) -> IX.10 | M30: =CONCATENATE("X.",RIGHT(YEAR(dat_do),2)) -> X.10 | N30: =CONCATENATE("XI.",RIGHT(YEAR(dat_do),2)) -> XI.10 | O30: =CONCATENATE("XII.",RIGHT(YEAR(dat_do),2)) -> XII.10
A31: Fakt. ZP běžný rok | B31: 242648.2124 | C31: 277470.6809 | D31: 267522.904 | E31: 269864.3267
A32: Dorov. ZP minul. let | B32: 2335.178226 | C32: 9548.614495 | D32: 22013.40311 | E32: 2900.03237
A33: Prodej LS | B33: 28611.43977 | C33: 29544.61908 | D33: 25463.88986 | E33: 24551.93713
A34: Přímé výnosy | B34: 305094.6372 | C34: 352687.9779 | D34: 347097.9506 | E34: 357810.7453

Sheet Vývojová řada HV - 27
E1: Vývojová řada hospodářských výsledků
F2: =CONCATENATE("v letech ",YEAR(dat_do)-2,"-",YEAR(dat_do)) -> v letech 2008-2010
B36: 01 | C36: 02 | D36: 03 | E36: 04 | F36: 05 | G36: 06 | H36: 07 | I36: 08 | J36: 09 | K36: 10 | L36: 11 | M36: 12
A37: =CONCATENATE("HV ",YEAR(dat_do)-2) -> HV 2008 | B37: -31193.58369 | C37: -7114.38203 | D37: 441.17762 | E37: 8042.74969 | F37: 10746.53691 | G37: 67656.09773 | H37: 74.6272 | I37: 8.95152 | J37: 17608.64403 | K37: -11563.22397 | L37: -19354.0164 | M37: 73775.03949
A38: =CONCATENATE("HV ",YEAR(dat_do)-1) -> HV 2009 | B38: 6492.61833 | C38: 18308.92358 | D38: -7937.45901 | E38: -5773.73576 | F38: 46337.23787 | G38: 41870.974 | H38: 51840.8519 | I38: 41112.93109 | J38: -24927.6951 | K38: -15718.64914 | L38: 6463.40567 | M38: -155600.6505
A39: =CONCATENATE("HV ",YEAR(dat_do)) -> HV 2010 | B39: -21357.03585 | C39: -13950.53454

Sheet Podíl ukazatelů N a V - 28
A1: Náklady a výnosy FN Olomouc v tis. Kč
A2: =dat_obdobi -> 1-2/2010
D6: Podíl ukazatelů z celkových nákladů
A7: Náklady FN Olomouc v tis. Kč
A8: Léky | B8: 149682
A9: Krev | B9: 7977
A10: SZM | B10: 141398
A11: Potraviny | B11: 6510
A12: Energie | B12: 25911
A13: Osobní náklady | B13: 263122.1782
A14: Odpisy | B14: 45352
A15: Prodané zboží LS | B15: 44890
A16: Ostatní | B16: =B17-SUM(B8:B15) -> 55374.088
A17: Celkem | B17: 740216.2662
D31: Podíl ukazatelů z celkových výnosů
A32: Výnosy FN Olomouc v tis. Kč
A33: Provozní dotace | B33: 0
A34: Výkony pro zdr.poj. | B34: 562300.6661
A35: Aktivace | B35: 13287.92924
A36: Tržby za léčiva | B36: 50015.82699
A37: Ostatní výnosy | B37: =B38-SUM(B33:B36) -> 79304.27348
A38: Celkem | B38: 704908.6958
